Cogmind - Beta 10.2 @@@ ROGUE MODE // 2022.03.03 @ 09:56:50 // Winter2019/RPGLIKE Player: Xeram Result: Destroyed by G-47 Trooper with Particle Gun Performance ------------- Evolutions (2) 1000 Regions Visited (5) 1000 Robots Destroyed (37) 185 Value Destroyed (777) 777 Prototype IDs (2) 40 Alien Tech Used (0) 0 Bonus (11) 11 TOTAL SCORE: 3013 Bonus ------- High Alert Combat Kills 11 Cogmind --------- Core Integrity 0/600 Matter 19/300 Energy 160/160 System Corruption 0% Temperature Cool (18) Movement Walking (150) Ox1 Location -8/Materials Parts ------- > --- POWER (1) -------- Light Nuclear Core > --- PROPULSION (2) --- Carbon-fiber Leg Cesium-ion Thruster > --- UTILITY (3) ------ Advanced Signal Interpreter Melee Analysis Suite Launcher Guidance Computer > --- WEAPON (2) ------- Heavy Rocket Launcher Heavy Rocket Launcher > --- INVENTORY (1) ---- Minigun Peak State ------------ > --- POWER ------------ Light Nuclear Core > --- PROPULSION ------- Carbon-fiber Leg Cesium-ion Thruster > --- UTILITY ---------- Advanced Signal Interpreter Melee Analysis Suite Launcher Guidance Computer > --- WEAPON ----------- Heavy Rocket Launcher Heavy Rocket Launcher > --- INVENTORY -------- Minigun [Rating: 27] Favorites ----------- Power Light Nuclear Core Engine Light Ion Engine Power Core Light Nuclear Core Propulsion Flight Unit Leg Carbon-fiber Leg Wheel Wheel Flight Unit Flight Unit Utility Improved Signal Interpreter Storage Small Matter Pod Processor Improved Signal Interpreter Weapon Assault Rifle Ballistic Gun Assault Rifle Launcher Heavy Rocket Launcher Build | -11 -10 -10 -10 -9 -8 ------- Run | Scr Mat Min Exi Min Mat Slots Evolved 4 | 3 . 1 . . . Power . | . . . . . . Propulsion 1 | 1 . . . . . Utility 2 | 1 . 1 . . . Weapon 1 | 1 . . . . . Parts Attached 18 | 5 4 3 . 1 5 Power 2 | 1 . 1 . . . Engine 1 | 1 . . . . . Core 1 | . . 1 . . . Reactor . | . . . . . . Propulsion 6 | 2 2 1 . . 1 Treads . | . . . . . . Leg 1 | . . . . . 1 Wheel 2 | 2 . . . . . Hover . | . . . . . . Flight 3 | . 2 1 . . . Utility 5 | . 2 . . 1 2 Device . | . . . . . . Storage 1 | . 1 . . . . Processor 4 | . 1 . . 1 2 Hackware . | . . . . . . Protection . | . . . . . . Artifact . | . . . . . . Weapon 5 | 2 . 1 . . 2 Energy Gun . | . . . . . . Energy Cannon . | . . . . . . Ballistic Gun 3 | 2 . 1 . . . Ballistic Cannon . | . . . . . . Launcher 2 | . . . . . 2 Special Weapon . | . . . . . . Impact Weapon . | . . . . . . Slashing Weapon . | . . . . . . Piercing Weapon . | . . . . . . Special Melee Weapon . | . . . . . . Unidentified Prototypes . | . . . . . . Parts Lost . | . . . . . . Power . | . . . . . . Propulsion . | . . . . . . Utility . | . . . . . . Weapon . | . . . . . . Highest Loss Streak . | . . . . . . Average Slot Usage (%) 83 | . 81 76 75 79 98 Engine 5 | . 14 6 . . . Core 7 | . . 5 12 12 12 Leg 2 | . . . . . 10 Wheel 2 | . 11 . . . . Flight 20 | . 16 25 25 25 13 Processor 18 | . 10 12 12 16 35 Ballistic Gun 21 | . 28 25 25 25 5 Launcher 4 | . . . . . 19 Naked Turns . | . . . . . . Heaviest Build 19 | 6 6 10 10 10 19 Greatest Support 26 | 26 26 10 10 10 15 Greatest Overweight (x) 1 | . 1 . . . 1 Average Overweight (x) . | . . . . . . Largest Inventory Capacity 1 | . . 1 1 1 1 Average Capacity . | . . . 1 1 1 Most Carried 1 | . . 1 1 1 1 Average Carried . | . . . 1 . . Final Capacity 1 | . . 1 1 1 1 Final Carried 1 | . . 1 1 1 1 Class Distribution -------------------- 100% | Mutant Dominant Class ---------------- Mutant | -10/Materials Mutant | -10/Mines Mutant | -10/Exiles Mutant | -9/Mines Mutant | -8/Materials Resources | -11 -10 -10 -10 -9 -8 ----------- Run | Scr Mat Min Exi Min Mat Matter Collected 875 | 239 230 226 . 21 159 Remotely . | . . . . . . Salvage Created 519 | . 325 81 . . 113 Parts 52 | . 18 15 . 2 17 Haulers Intercepted 3 | . 2 . . . 1 Recyclers Shooed . | . . . . . . Parts Field Recycled . | . . . . . . Retrieved Matter . | . . . . . . Parts Self-Destructed . | . . . . . . Prevented . | . . . . . . Kills | -11 -10 -10 -10 -9 -8 ------- Run | Scr Mat Min Exi Min Mat Combat Hostiles Destroyed 24 | . 8 10 . 2 4 Guns 20 | . 8 10 . 2 . AOE 4 | . . . . . 4 Classes Destroyed 9 | . 4 . . 1 4 Worker 4 | . . . . . 4 Builder 2 | . . . . . 2 Hauler 3 | . 2 . . . 1 Watcher 4 | . 1 . . . 3 Swarmer 12 | . 6 6 . . . Grunt 8 | . 2 4 . 1 1 Duelist 1 | . . . . 1 . Sentry 1 | . . . . . 1 Hunter 2 | . . . . . 2 Best Kill Streak 11 | . 4 5 . 1 11 Combat Bots Only 5 | . 3 5 . 1 1 Max Kills in Single Turn 2 | . 1 1 . 1 2 Gunslinging . | . . . . . . Exploded 1 | . . . . . 1 Melee . | . . . . . . Uniques/NPCs Destroyed . | . . . . . . Combat | -11 -10 -10 -10 -9 -8 -------- Run | Scr Mat Min Exi Min Mat Damage Taken 1456 | . 230 439 . 70 717 Core 1215 | . 187 360 . 57 611 Absorbed by Shields . | . . . . . . Redirected to Core 816 | . 137 248 . 47 384 Core Remaining (%) 100 | 100 . . . 100 . Volleys Fired 104 | . 45 33 . 16 10 Largest 2 | . 2 2 . 2 2 Hottest 78 | . 40 45 . 45 78 Shots Fired 207 | . 90 65 . 32 20 Gun 187 | . 90 65 . 32 . Cannon . | . . . . . . Launcher 20 | . . . . . 20 Special . | . . . . . . Kinetic 187 | . 90 65 . 32 . Thermal . | . . . . . . Explosive 20 | . . . . . 20 Electromagnetic . | . . . . . . Robot Hit Streak 10 | . 5 4 . 4 10 Robot Miss Streak 7 | . 5 7 . 3 1 Penetration Max . | . . . . . . Secondary Targets 4 | . 3 1 . . . Max Gunslinging Chain 1 | . 1 1 . . . Shots Hit Robots 105 | . 47 30 . 18 10 Core Hits 62 | . 20 13 . 5 24 Critical Hits 2 | . . 2 . . . Critical Kills 2 | . . 2 . . . Critical Parts Destroyed . | . . . . . . Melee Attacks . | . . . . . . Impact . | . . . . . . Slashing . | . . . . . . Piercing . | . . . . . . Sneak Attacks . | . . . . . . Combat Hostiles . | . . . . . . Follow-up Attacks . | . . . . . . Damage Inflicted 2772 | . 572 391 . 244 1565 Guns 1207 | . 572 391 . 244 . Cannons . | . . . . . . Explosions 1565 | . . . . . 1565 Melee . | . . . . . . Ramming . | . . . . . . Kinetic 1207 | . 572 391 . 244 . Thermal 235 | . . . . . 235 Explosive 1330 | . . . . . 1330 Electromagnetic . | . . . . . . Impact . | . . . . . . Slashing . | . . . . . . Piercing . | . . . . . . Highest Corruption 2 | . 2 2 2 2 . Average Corruption 1 | . 1 2 2 2 . Corruption Purged . | . . . . . . Effects 13 | . 5 7 . 1 . Heat Flow Errors 1 | . . 1 . . . Energy Discharges 1 | . . . . 1 . Data Loss (minor) 1 | . . 1 . . . Targeting Errors 9 | . 5 4 . . . Weapon Failures 1 | . . 1 . . . Overload Shots . | . . . . . . Overflow Damage 160 | . . . . . 160 Projectiles . | . . . . . . Explosions 160 | . . . . . 160 Melee . | . . . . . . Knockbacks . | . . . . . . Impact . | . . . . . . Kinetic . | . . . . . . Secondary . | . . . . . . Self-Inflicted Damage 73 | . . . . . 73 Shots 3 | . . . . . 3 Rammed . | . . . . . . Targets Rammed . | . . . . . . Kicked . | . . . . . . Crushed . | . . . . . . Highest Temperature 240 | . 17 240 . 24 114 Average Temperature 22 | . 4 34 . 10 35 Received Heat Transfer 429 | . 54 135 . 6 234 Siege Activations . | . . . . . . Robots Corrupted . | . . . . . . Combat Hostiles . | . . . . . . Parts Fried . | . . . . . . Impact Corruptions . | . . . . . . Robots Melted . | . . . . . . Combat Hostiles . | . . . . . . Parts Melted . | . . . . . . Heat Transferred 150 | . . . . . 150 Parts Sabotaged . | . . . . . . Parts Stolen . | . . . . . . Parts Stripped . | . . . . . . Power Chain Reactions . | . . . . . . Missiles Intercepted . | . . . . . . Alert | -11 -10 -10 -10 -9 -8 ------- Run | Scr Mat Min Exi Min Mat Peak Influence 440 | . 272 360 . 65 440 Initial 105 | . . 105 . . 25 Average 147 | . 91 243 . 26 179 Maximum Alert Level 2 | . 1 1 . . 2 Low Security (%) 65 | 100 84 30 . 100 63 Level 1 32 | . 15 69 . . 28 Level 2 1 | . . . . . 7 Level 3 . | . . . . . . Level 4 . | . . . . . . Level 5 . | . . . . . . High Security . | . . . . . . Max Security . | . . . . . . Squads Dispatched 2 | . . 1 . . 1 Investigation 1 | . . 1 . . . Extermination . | . . . . . . Reinforcement 1 | . . . . . 1 Assault . | . . . . . . Garrison . | . . . . . . Intercept . | . . . . . . Construction Impeded 1 | . . . . . 1 Haulers Reinforced . | . . . . . . Stealth | -11 -10 -10 -10 -9 -8 --------- Run | Scr Mat Min Exi Min Mat Distress Signals 4 | . 1 . . . 3 Communications Jammed . | . . . . . . Distress Signals . | . . . . . . Times Spotted 46 | . 13 13 . 3 17 Peak Tracking Total 7 | . 3 6 . 2 7 Tactical Retreats 2 | . . . . 1 1 Traps | -11 -10 -10 -10 -9 -8 ------- Run | Scr Mat Min Exi Min Mat Traps Triggered . | . . . . . . Indirectly . | . . . . . . Trap Hack Attempts . | . . . . . . Triggered . | . . . . . . Disarmed . | . . . . . . Reprogrammed . | . . . . . . Reused 2 | . . . . 2 . Traps Extracted . | . . . . . . Installed 2 | . . . . 2 . Triggered 2 | . . . . 2 . Machines | -11 -10 -10 -10 -9 -8 ---------- Run | Scr Mat Min Exi Min Mat Machines Disabled 2 | . . . . . 2 Max in Single Turn 2 | . . . . . 2 Machines Sabotaged . | . . . . . . Garrisons Compromised . | . . . . . . Overloaded Fab Kills . | . . . . . . Fab Network Shutdowns . | . . . . . . Hacking | -11 -10 -10 -10 -9 -8 --------- Run | Scr Mat Min Exi Min Mat Machines Accessed 9 | . 6 1 . . 2 Terminals 8 | . 6 . . . 2 Fabricators . | . . . . . . Repair Stations . | . . . . . . Recycling Units . | . . . . . . Scanalyzers . | . . . . . . Garrison Access . | . . . . . . Total Hacks 25 | . 17 1 . . 7 Successful 9 | . 4 1 . . 4 Failed 16 | . 13 . . . 3 Catastrophic 3 | . 3 . . . . Database Lockouts . | . . . . . . Manual 9 | . 5 . . . 4 Terminals 24 | . 17 . . . 7 Fabricators . | . . . . . . Repair Stations . | . . . . . . Recycling Units . | . . . . . . Scanalyzers . | . . . . . . Garrison Access . | . . . . . . Terminal Hacks 6 | . 3 1 . . 2 Prototype ID Bank 1 | . 1 . . . . Open Door 1 | . . 1 . . . Branch Access Points 2 | . 1 . . . 1 Terminal Index 1 | . 1 . . . . Registered Components 1 | . . . . . 1 Fabricator Hacks . | . . . . . . Repair Station Hacks . | . . . . . . Recycling Unit Hacks . | . . . . . . Scanalyzer . | . . . . . . Garrison Access Hacks . | . . . . . . Unauthorized Hacks 3 | . 1 . . . 2 Terminals 3 | . 1 . . . 2 Botnet 3 | . 1 . . . 2 Fabricators . | . . . . . . Repair Stations . | . . . . . . Recycling Units . | . . . . . . Scanalyzers . | . . . . . . Garrison Access . | . . . . . . Data Cores Recovered . | . . . . . . Used . | . . . . . . Hacking Detections 7 | . 5 . . . 2 Full Trace Events 2 | . 2 . . . . Feedback Events 2 | . 2 . . . . Corruption 2 | . 2 . . . . Feedback Blocked . | . . . . . . Robot Schematics Acquired . | . . . . . . Robots Built . | . . . . . . Matter . | . . . . . . Time . | . . . . . . Total Robot Build Rating . | . . . . . . Part Schematics Acquired . | . . . . . . Parts Built . | . . . . . . Matter . | . . . . . . Time . | . . . . . . Total Part Build Rating . | . . . . . . Parts Repaired . | . . . . . . Time . | . . . . . . Parts Recycled . | . . . . . . Recycled Matter . | . . . . . . Retrieved Matter . | . . . . . . Retrieved Components . | . . . . . . Parts Scanalyzed . | . . . . . . Part Schematics Acquired . | . . . . . . Parts Damaged . | . . . . . . Bothacking | -11 -10 -10 -10 -9 -8 ------------ Run | Scr Mat Min Exi Min Mat Used RIF Installer . | . . . . . . Robots Hacked . | . . . . . . Non-combat . | . . . . . . Combat . | . . . . . . Robot Hacks Applied . | . . . . . . Relay Couplers Released . | . . . . . . Robots Rewired . | . . . . . . Allies Hacked . | . . . . . . Hacks Repelled . | . . . . . . Allies | -11 -10 -10 -10 -9 -8 -------- Run | Scr Mat Min Exi Min Mat Total Allies . | . . . . . . Largest Group . | . . . . . . Highest-Rated Group . | . . . . . . Highest-Rated Ally . | . . . . . . Total Orders . | . . . . . . Ally Attacks . | . . . . . . Total Damage . | . . . . . . Kills . | . . . . . . Allies Corrupted . | . . . . . . Allies Melted . | . . . . . . Intel | -11 -10 -10 -10 -9 -8 ------- Run | Scr Mat Min Exi Min Mat Robot Analysis Total . | . . . . . . Derelict Logs Recovered 3 | . . 2 . 1 . Drone Launches . | . . . . . . Drone Recoveries . | . . . . . . Exploration | -11 -10 -10 -10 -9 -8 ------------- Run | Scr Mat Min Exi Min Mat Turns Passed 1503 | 44 354 466 52 249 338 Spaces Moved 2161 | 49 385 826 140 487 274 Core 17 | 17 . . . . . Treads . | . . . . . . Legs 173 | . . . . . 173 Wheels 138 | 32 106 . . . . Hover . | . . . . . . Flight 1833 | . 279 826 140 487 101 Fastest Speed 37 | 50 37 37 37 37 37 Average Speed 49 | 74 51 37 37 37 105 Slowest Speed 150 | 90 120 37 37 37 150 Overloaded Moves . | . . . . . . Propulsion Burnouts . | . . . . . . Robots Hopped 25 | . 1 20 . 4 . Cave-ins Triggered . | . . . . . . Exploration Rate (%) 54 | 2 71 99 51 62 39 Regions Visited 5 Branch Regions 3 Pre-discovered Areas 2 | . . 2 . . . Known Exits Taken 4 | . 1 1 1 1 . Unknown Exits Taken 1 | 1 . . . . . Scrap Searched 4 | . . 2 . 2 . Spaces Dug 16 | . . . . . 16 Terrain Destroyed 228 | . . . . . 228 Melee . | . . . . . . Projectile . | . . . . . . AOE 228 | . . . . . 228 Terrain Rammed . | . . . . . . Walls Destroyed . | . . . . . . Machines Disabled . | . . . . . . Actions | -11 -10 -10 -10 -9 -8 --------- Run | Scr Mat Min Exi Min Mat Total 2378 | 53 456 905 139 523 302 Wait 66 | . 17 35 . 6 8 Move 2108 | 48 382 787 139 478 274 Hop 23 | . 1 18 . 4 . Pick Up 5 | . . . . 4 1 Fast Attach 16 | 5 4 2 . 1 4 Attach . | . . . . . . Detach . | . . . . . . Swap 2 | . . 1 . . 1 Drop 13 | . 3 2 . 4 4 Fire 104 | . 45 33 . 16 10 Melee . | . . . . . . Ram . | . . . . . . Kick . | . . . . . . Crush . | . . . . . . Escape Stasis . | . . . . . . Rewire . | . . . . . . Trap 2 | . . . . 2 . Miscellaneous 39 | . 4 27 . 8 . Route ------- -11/Scrapyard -10/Materials (discovered 5 exits: *Mat x3 / *Min x2) -10/Mines (discovered 3 exits: *Mat x2 / *Exi) -10/Exiles -9/Mines -8/Materials (discovered 2 exits: *Fac x2) History --------- Turn | Location | Event 10 | -11/Scrapyard | Upgraded with Propulsion slot (x1) 10 | -11/Scrapyard | Upgraded with Utility slot (x1) 10 | -11/Scrapyard | Upgraded with Weapon slot (x1) 21 | -11/Scrapyard | Discovered new exit (range 15) 45 | -11/Scrapyard | Entered Materials 163 | -10/Materials | Discovered new exit (range 6) 169 | -10/Materials | Identified exit to Materials 201 | -10/Materials | Discovered exit to Materials (range 15) 302 | -10/Materials | Build established: Mutant 338 | -10/Materials | Discovered exit to Materials (range 9) 344 | -10/Materials | Identified exit to Mines 399 | -10/Materials | Entered Mines 401 | -10/Mines | Reached level 2 415 | -10/Mines | Met a Derelict bent on vengeance 440 | -10/Mines | Upgraded with Utility slot (x1) 451 | -10/Mines | Met a Derelict shopkeep closing up shop 470 | -10/Mines | Learned location of Zion (-7) 651 | -10/Mines | Discovered exit to Materials (range 6) 697 | -10/Mines | Discovered exit to Materials (range 12) 863 | -10/Mines | Deemed a non-threat by the Exiles lab entrance 863 | -10/Mines | Discovered new exit (range 5) 864 | -10/Mines | Identified exit to Exiles 865 | -10/Mines | Entered Exiles 874 | -10/Exiles | Met 8R-AWN 881 | -10/Exiles | Met EX-HEX 897 | -10/Exiles | Met EX-DEC 912 | -10/Exiles | Discovered new exit (range 14) 917 | -10/Exiles | Identified exit to Mines 917 | -10/Exiles | Entered Mines 919 | -9/Mines | Reached level 3 956 | -9/Mines | Found a hidden stash of uninstalled traps 1123 | -9/Mines | Discovered new exit (range 15) 1129 | -9/Mines | Learned location of 1 exit from Materials 1164 | -9/Mines | Identified exit to Materials 1166 | -9/Mines | Entered Materials 1167 | -8/Materials | Identified exit to Factory 1168 | -8/Materials | Reached level 4 1412 | -8/Materials | Reached level 5 1420 | -8/Materials | Core integrity fell below 50% 1497 | -8/Materials | Core integrity fell below 20% 1499 | -8/Materials | Discovered exit to Factory (range 14) 1504 | -8/Materials | Destroyed by G-47 Trooper with Particle Gun Last Messages --------------- 01427_ The unstable cave ceiling collapses. 01465_ K-01 Serf collects debris. 01470_ R-06 Scavenger collects Wheel. 01473_ The unstable cave ceiling collapses. 01473_ U-05 Engineer lays Concrete. 01474_ Acquired 34 matter. 01474_ U-05 Engineer lays Concrete. 01475_ K-01 Serf collects debris. 01475_ U-05 Engineer lays Concrete. 01475_ Acquired 4 matter. 01476_ K-01 Serf collects debris. 01478_ G-47 Trooper destroyed. 01479_ K-01 Serf collects debris. 01485_ The unstable cave ceiling collapses. 01487_ K-01 Serf collects debris. 01498_ R-06 Scavenger inserts Wheel into recycling unit. 01499_ EXIT=FOUND: FACTORY 01501_ R-06 Scavenger inserts Lgt. Ion Engine into recycling unit. 01503_ K-01 Serf cleans the Terminal. 01504_ R-06 Scavenger inserts Wheel into recycling unit. Map ----- +----------------------------------------------------+ | | | ?????????????????????????????????????????????????? | | ?????????????????????????????????????????????????? | | ?????????????????????????????????????????????????? | | ?????????????????????????????????????????????????? | | ?????????????????????????????????????????????????? | | ?????????????????????????????????????????????????? | | ?????????????????????????????????????????????????? | | ?????????????????????????????????????????????????? | | ?????????????????????????????????????????????????? | | ?????????????????????????????????????????????????? | | ?????????????????????????????????????????????????? | | ?????????????????????????????????????????????????? | | ??????????????????????#####??????????????????????? | | ??????????????????????# #??????????????????????? | | ??????????????????????# < #??????????????????????? | | ??????????????????????# #??????????????????????? | | ??????????????????????# ###+#####??????????????? | | ??????????????????????# ???????????????? | | ??????????????????????# ????????????????? | | ??????????????????????# """ #??????????????? | | ??????????????????????# rY" ##?????????????? | | ??????????????????????# """ ""?????????????? | | ??????????????????????# "??????????????? | | ??????????????????????# T??????????????? | | ??????????????????????# @""" "??????????????? | | ???????????############ """ k""?????????????? | | ???????????# ## """ #??????????????? | | ???????????# ## #??????????????? | | ???????????# # g ??????????? | | ???????????# + o?????????? | | ???????????# # ???????????? | | ??????????## ! # gg ####???????????? | | ??????????# ! gg # ######+###??????????????? | | ??????????## # #???????????????????????? | | ###????????### +###### #???????????????????????? | | #?########## ## ## #???????????????????????? | | #?# # # #???????????????????????? | | #?#""" = # ### Y ###?????????????????????? | | #?#"R ## w #?????????????????????? | | #?# k # = Y #????????????????????? | | ?## t ##????????????????????? | | ####" # #????????????????????? | | # " = #????????????????????? | | # ## #????????????????????? | | # # # % #????????????????????? | | # # ### # #???????????????????? | | # #???????????????????? | | # # # # #????????????????????? | | # # #????????????????????? | +----------------------------------------------------+ Best States ------------- Heat Dissipation 25 Energy Generation 14 Energy Capacity 160 Matter Stores 300 Matter Capacity 300 Sight Range 16 Robot Scan Range 24 Terrain Scan Density 10 Evasion (%) 62 Melee Accuracy 5 Launcher Accuracy 20 Item Schematics ----------------- None Robot Schematics ------------------ None Fabricated ------------ Nothing Alien Tech Used ----------------- None Achievements -------------- None Challenges ------------ None RPGLIKE | -11 -10 -10 -10 -9 -8 --------- Run | Scr Mat Min Exi Min Mat Levels Raised 4 | . . 1 . 1 2 XP Earned 9285 | 3000 1090 1700 200 825 2470 XP Spent 5300 | 2800 . 1350 . 1150 . Upgrades 19 | 12 . 3 . 4 . Propulsion Slot 1 | 1 . . . . . Utility Slot 2 | 1 . 1 . . . Weapon Slot 1 | 1 . . . . . Inventory Capacity 1 | . . 1 . . . Sensor Range 12 | 8 . . . 4 . Melee Accuracy 2 | 1 . 1 . . . Protomatter Created 341 | . 24 191 . 86 40 Integrity Restored 760 | . 72 542 . 146 . Core 604 | . 72 422 . 110 . Parts 156 | . . 120 . 36 . Protomatter Decayed 122 | . . 70 . 35 17 Game ------ Seed PlasmaDefenseNetwork Manual? 0 Play Time 00:21:11 Cumulative 95.2 hours Start 2022.03.03 @ 09:36:56 End 2022.03.03 @ 09:56:50 Sessions 1 Manual Loads 0 Difficulty Rogue Special Mode Winter2019/RPGLIKE Game No. 74 Rogue 73 Adventurer 1 Explorer 0 Win Type - Total 7 Types 3/1/0/2/0/1/0/0/0 Lore% 61 Gallery% 72 Achievement% 71 Wizard Run 0 Options --------- ASCII 0 Keyboard 1 Movement Numpad Keybinds 0 Fullscreen 1 Font 18/Terminus Map View 76x50 Tactical HUD 1 Map Filters NONE Filters NONE Steam 1 RUN: ad62362f-12e2-489d-a8fb-5952631f2cea